Cogmind - Beta 13 @@@ ROGUE MODE // 2024.05.31 @ 16:50:46 Player: aoemica Result: Destroyed by Y-72 Warden with Quantum Rifle Performance ------------- Evolutions (7) 3500 Regions Visited (32) 6400 Robots Destroyed (487) 2435 Value Destroyed (18113) 18113 Prototype IDs (71) 1420 Alien Tech Used (2) 400 Bonus (7242) 7242 TOTAL SCORE: 39510 Bonus ------- High Alert Combat Kills 2218 Follower Combat Kills 247 Entered Garrisons 400 Met Data Miner 300 Met Imprinter 300 Destroyed Z-Imprinter 1000 Acquired ECA 300 Met Zhirov 300 Met Warlord at Base 500 MAIN.C Attacked Warlord 500 Warlord Defense Kills 2186 Friendly Fire -1009 Cogmind --------- Core Integrity 0/1300 Matter 159/300 Energy 100/100 System Corruption 3% Temperature Cool (9) Movement Core (50) Location -3/Research Parts ------- > --- POWER (3) -------- (None) > --- PROPULSION (6) --- (None) > --- UTILITY (9) ------ (None) > --- WEAPON (3) ------- (None) > --- INVENTORY (5) ---- Zionite Biocell (600) Experimental Terrain Scan Processor Centrium Medium Armor Plating Ghost Barrier Fusion Bomb Launcher Peak State ------------ > --- POWER ------------ Heavy Antimatter Reactor Vortex Chain Reactor > --- PROPULSION ------- Medium Treads Improved Medium Treads Armored Medium Treads Armored Medium Treads Armored Medium Treads Biometal Medium Treads > --- UTILITY ---------- Experimental Heat Sink Experimental Coolant Injector Huge Storage Unit Experimental Sensor Array Experimental Targeting Computer Improved Transmission Jammer Centrium Medium Armor Plating Improved Energy Mantle Makeshift Hacking Suite > --- WEAPON ----------- High-powered Shock Rifle High-powered Shock Rifle High-powered Shock Rifle > --- INVENTORY -------- Particle Reactor Medium Treads Medium Treads Zionite Biocell Zionite Biocell Matter Compressor Experimental Terrain Scan Processor Experimental Target Analyzer Particle Accelerator Improved Medium Armor Plating Graphene Brace Advanced Shield Generator Antimissile System Ghost Barrier Minesniffer Drone Bay Transdimensional Reconstructor Tesla Rifle Tesla Rifle Tesla Rifle Neutron Cannon Matter Neutralizer Heavy Autocannon Long-range Missile Launcher CPS Tube [Rating: 155] Favorites ----------- Power Neutrino Core Engine Ion Engine Power Core Neutrino Core Reactor Vortex Chain Reactor Propulsion Armored Treads Treads Armored Treads Leg Carbon-fiber Leg Wheel Compact Wheel Flight Unit Impulse Thruster Array Utility High-capacity Storage Unit Device Experimental Sensor Array Storage High-capacity Storage Unit Processor Experimental Targeting Computer Hackware Hacking Suite Protection Improved Medium Armor Plating Weapon High-powered Shock Rifle Energy Gun High-powered Shock Rifle Energy Cannon Beam Cannon Ballistic Gun Improved Assault Rifle Ballistic Cannon Improved Light Cannon Launcher Long-range Missile Launcher Special Weapon Plasma Cutter Impact Weapon Gravity Flail Build | -11 -10 -10 -9 -9 -9 -8 -8 -8 -8 -8 -7 -7 -7 -7 -6 -6 -6 -6 -6 -6 -5 -5 -5 -5 -5 -4 -4 -4 -4 -4 -3 -3 ------- Run | Yrd Mat Min Mat Min Exi Min Mat Gar Mat Gar Fac Low Low Dat Pro Fac Low Low Zio Dee Pro Fac Upp Upp War Pro Fac Upp Upp Zhi Pro Res Slots Evolved 14 | . . . 2 . . . 2 . . . 2 . . . . 2 . . . . . 2 . . . . 2 . . . . 2 Power 2 | . . . . . . . . . . . . . . . . 1 . . . . . . . . . . 1 . . . . . Propulsion 4 | . . . 1 . . . . . . . 1 . . . . . . . . . . 1 . . . . 1 . . . . . Utility 7 | . . . . . . . 2 . . . 1 . . . . 1 . . . . . 1 . . . . . . . . . 2 Weapon 1 | . . . 1 . . . . . . . . . . . . . . . . . . . . . . . . . . . . . Parts Attached 646 | . 13 10 27 3 25 5 40 31 17 13 8 10 4 3 12 122 15 7 15 36 8 46 11 24 44 7 21 10 8 10 9 32 Power 47 | . 1 4 2 . . . 6 3 2 . . 1 . . 1 9 1 1 . 2 . 6 . 1 2 1 1 . . 1 . 2 Engine 21 | . 1 3 2 . . . 4 1 1 . . 1 . . . 5 1 . . 1 . 1 . . . . . . . . . . Core 16 | . . 1 . . . . 2 2 1 . . . . . 1 2 . 1 . . . 5 . 1 . . . . . . . . Reactor 10 | . . . . . . . . . . . . . . . . 2 . . . 1 . . . . 2 1 1 . . 1 . 2 Propulsion 104 | . 4 2 8 . 6 2 13 2 3 1 4 1 . . . 16 2 . 1 6 . 6 3 7 3 1 4 . . . 4 5 Treads 88 | . 3 2 7 . 5 2 13 2 3 1 4 1 . . . 14 2 . 1 2 . 1 3 6 3 1 4 . . . 4 4 Leg 13 | . 1 . . . 1 . . . . . . . . . . 1 . . . 4 . 5 . 1 . . . . . . . . Wheel 2 | . . . 1 . . . . . . . . . . . . 1 . . . . . . . . . . . . . . . . Hover . | . . . . . . . . . . . . . . . . . . . . . . . . . . . . . . . . . Flight 1 | . . . . . . . . . . . . . . . . . . . . . . . . . . . . . . . . 1 Utility 220 | . 3 . 3 1 7 1 9 4 3 2 2 4 3 . 8 38 8 2 7 12 6 19 1 12 20 4 4 8 7 6 5 11 Device 161 | . 1 . 2 . 3 . 5 1 1 1 . 4 3 . 7 26 7 2 7 6 6 15 1 10 16 3 2 8 7 4 5 8 Storage 9 | . 2 . 1 . 1 . . . . . . . . . . . 1 . . 1 . 1 . . . . . . . 1 . 1 Processor 11 | . . . . . 1 . 2 . . . 1 . . . . 3 . . . . . 1 . . 2 . 1 . . . . . Hackware 4 | . . . . . . . . . . . . . . . . 2 . . . . . 1 . . . . 1 . . . . . Protection 35 | . . . . 1 2 1 2 3 2 1 1 . . . 1 7 . . . 5 . 1 . 2 2 1 . . . 1 . 2 Artifact . | . . . . . . . . . . . . . . . . . . . . . . . . . . . . . . . . . Weapon 275 | . 5 4 14 2 12 2 12 22 9 10 2 4 1 3 3 59 4 4 7 16 2 15 7 4 19 1 12 2 1 3 . 14 Energy Gun 78 | . 3 . . . . . 1 2 . . . . . . . 16 1 . 1 6 . 12 4 2 9 1 9 1 1 3 . 6 Energy Cannon 34 | . 2 2 2 . . . . . . . . 1 . . . 9 1 2 3 2 . . 1 . 4 . 1 . . . . 4 Ballistic Gun 92 | . . . 6 1 9 1 8 17 5 5 1 2 1 2 2 17 . 1 1 4 1 3 2 . 3 . . . . . . . Ballistic Cannon 34 | . . . 6 . 2 1 1 . 2 1 1 . . 1 . 11 1 . 2 2 . . . . . . 2 . . . . 1 Launcher 28 | . . 1 . 1 1 . 2 . 2 1 . 1 . . 1 6 1 1 . 2 1 . . 2 2 . . 1 . . . 2 Special Weapon 7 | . . . . . . . . 3 . 3 . . . . . . . . . . . . . . 1 . . . . . . . Impact Weapon 2 | . . 1 . . . . . . . . . . . . . . . . . . . . . . . . . . . . . 1 Slashing Weapon . | . . . . . . . . . . . . . . . . . . . . . . . . . . . . . . . . . Piercing Weapon . | . . . . . . . . . . . . . . . . . . . . . . . . . . . . . . . . . Special Melee Weapon . | . . . . . . . . . . . . . . . . . . . . . . . . . . . . . . . . . Unidentified Prototypes 42 | . . . . . 5 . 1 . . . . . . . . 7 . . 2 9 . 1 . . 8 1 1 . . 5 . 2 Corrupted Parts 13 | . . . . . . . . . . . . . . . . 1 2 . 3 . . . . 4 . . . . . . 3 . System Corruption 73 | . . . . . . . . . . . . . . . . 4 11 . 20 . . . . 21 . . . . . . 17 . Parts Lost 69 | . 2 3 1 . 6 1 4 1 . 1 1 . . . 1 16 . 1 . 3 1 1 . . 3 1 . . 1 . . 21 Power 6 | . . 1 . . . . 1 . . . . . . . . 2 . 1 . . . . . . . . . . . . . 1 Propulsion 25 | . 1 2 . . 4 1 2 . . . 1 . . . . 5 . . . 1 . . . . . . . . . . . 8 Utility 18 | . . . . . 1 . . 1 . . . . . . 1 3 . . . 1 1 1 . . 3 . . . . . . 6 Weapon 20 | . 1 . 1 . 1 . 1 . . 1 . . . . . 6 . . . 1 . . . . . 1 . . 1 . . 6 Highest Loss Streak 14 | . 2 2 1 . 3 1 2 1 . 1 1 . . . 1 6 . 1 . 2 1 1 . . 3 1 . . 1 . . 14 To Critical Strikes 6 | . . . . . 5 . . . . 1 . . . . . . . . . . . . . . . . . . . . . . Average Slot Usage (%) 97 | . 98 99 99 100 99 100 99 99 99 100 100 100 100 79 100 98 99 100 92 95 87 98 100 99 99 99 93 94 94 79 94 81 Engine 5 | . 14 12 11 11 11 11 8 6 3 . . . 7 7 3 5 13 9 6 6 6 1 . . . . . . . . . . Core 3 | . . 1 . . . . . 2 5 9 7 6 . . 3 5 . 2 6 6 6 8 11 10 6 . . . . . . . Reactor 1 | . . . . . . . . . . . . . . . . 1 . . . . . . . . 4 10 10 10 10 10 10 8 Treads 25 | . 18 28 29 33 32 33 26 27 26 27 30 30 30 30 30 25 25 26 26 18 . 2 15 23 29 29 30 31 31 31 31 24 Leg 2 | . 9 . . . . . . . . . . . . . . . . . . 6 26 26 12 4 . . . . . . . . Device 10 | . 13 14 11 5 . . 9 9 9 9 7 7 7 7 7 8 13 13 13 10 8 15 11 11 15 22 15 15 15 14 15 18 Storage 7 | . 14 14 11 11 9 11 9 9 9 9 7 7 7 7 7 6 6 6 6 6 6 5 5 5 5 5 5 5 5 5 5 3 Processor 7 | . . . . . 1 . 8 9 9 9 15 15 15 15 15 14 13 13 13 7 6 10 11 11 10 5 5 5 5 5 5 3 Hackware 2 | . . . . . . . . . . . . . . . . . 6 6 6 6 6 6 5 5 1 . 2 5 5 5 5 3 Protection 5 | . . . . 5 10 11 9 8 8 9 7 7 7 7 7 7 . . . 4 4 . 5 4 5 5 7 5 5 5 5 3 Energy Gun 5 | . 5 . . . . . . . . . . . . . . 4 . . 5 5 . 8 14 16 11 16 13 14 15 1 15 8 Energy Cannon 3 | . 17 27 6 . . . . . . . . . . . . 2 6 5 . 2 . . . . 2 . . . . . . 1 Ballistic Gun 8 | . 5 . 6 10 32 22 24 26 20 11 8 6 11 2 14 6 6 5 . 5 5 4 1 . 1 . . . . . . . Ballistic Cannon 4 | . . . 20 22 . 11 2 . 5 14 13 15 10 1 7 5 5 6 5 3 6 1 . . . . . . . . . 1 Naked Turns 16 | . . . . . . . . . . . . . . . . . . . . . . . . . . . . . . . . 16 Heaviest Build 203 | 13 32 32 57 59 65 60 67 72 70 70 72 75 75 73 74 103 84 84 81 99 88 127 126 134 161 161 195 170 170 171 172 203 Greatest Support 174 | 20 40 40 60 60 60 60 66 66 66 66 83 82 82 82 82 118 98 90 98 98 88 103 116 136 136 129 159 159 159 159 167 174 Greatest Overweight (x) 7 | . . . 2 . 1 . 1 1 1 1 . . . . . 7 . . . 3 . 1 1 1 1 1 1 1 1 1 1 1 Average Overweight (x) . | . . . . . . . . . . . . . . . . . . . . . . . 1 . . 1 . 1 1 . 1 . Largest Inventory Capacity 25 | . 15 15 20 20 20 20 20 20 20 20 20 20 20 20 20 20 20 20 20 20 20 25 25 25 25 25 25 25 25 25 25 25 Average Capacity 20 | . 12 15 15 20 17 20 20 20 20 20 20 20 20 20 20 20 20 20 20 20 20 23 25 25 25 25 25 25 25 25 25 23 Most Carried 25 | . 14 15 20 20 20 20 20 20 20 20 20 20 20 20 20 20 20 20 20 20 20 25 25 25 25 25 25 25 25 25 25 25 Average Carried 19 | . 10 14 15 19 13 19 19 19 19 19 19 20 20 20 19 19 18 19 19 19 19 23 24 24 24 23 24 25 24 24 24 22 Final Capacity 25 | 8 15 15 20 20 20 20 20 20 20 20 20 20 20 20 20 20 20 20 20 20 20 25 25 25 25 25 25 25 25 25 25 5 Final Carried 25 | 6 14 15 20 20 20 20 20 20 20 19 20 20 20 20 20 18 20 19 20 20 18 25 25 24 24 25 25 25 25 25 25 5 Class Distribution -------------------- 49% | Scavenger-Gunner 20% | Scavenger-Tank 16% | Gunner 10% | Mutant Dominant Class ---------------- Mutant | -10/Materials Mutant | -10/Mines Scavenger-Gunner | -9/Materials Scavenger-Gunner | -9/Mines Scavenger-Tank | -9/Exiles Tank | -8/Mines Gunner | -8/Materials Gunner | -8/Garrison Gunner | -8/Materials Gunner | -8/Garrison Scavenger-Gunner | -7/Factory Gunner | -7/Lower Caves Gunner | -7/Lower Caves Mutant | -7/Data Miner Scavenger-Gunner | -6/Proximity Caves Scavenger-Gunner | -6/Factory Scavenger-Gunner | -6/Lower Caves Scavenger-Gunner | -6/Lower Caves Scavenger-Gunner | -6/Zion Scavenger-Gunner | -6/Deep Caves Scavenger-Gunner | -5/Proximity Caves Scavenger-Gunner | -5/Factory Scavenger-Gunner | -5/Upper Caves Scavenger-Gunner | -5/Upper Caves Scavenger-Gunner | -5/Warlord Scavenger-Tank | -4/Proximity Caves Scavenger-Tank | -4/Factory Scavenger-Tank | -4/Upper Caves Scavenger-Tank | -4/Upper Caves Scavenger-Mutant | -4/Zhirov Scavenger-Tank | -3/Proximity Caves Scavenger-Tank | -3/Research Resources | -11 -10 -10 -9 -9 -9 -8 -8 -8 -8 -8 -7 -7 -7 -7 -6 -6 -6 -6 -6 -6 -5 -5 -5 -5 -5 -4 -4 -4 -4 -4 -3 -3 ----------- Run | Yrd Mat Min Mat Min Exi Min Mat Gar Mat Gar Fac Low Low Dat Pro Fac Low Low Zio Dee Pro Fac Upp Upp War Pro Fac Upp Upp Zhi Pro Res Matter Collected 16335 | 200 271 123 764 52 885 252 1315 954 806 765 191 367 113 . 345 2684 701 80 66 950 138 1207 185 422 698 120 528 306 115 . 184 548 Remotely 920 | . . . . . . . 137 180 . 172 . . . . . 431 . . . . . . . . . . . . . . . . Salvage Created 22679 | . 896 903 1258 9 576 303 1708 1147 1308 753 262 262 . . 230 4871 642 37 . 421 148 1675 135 557 699 160 742 209 1064 . 410 1294 Parts 1095 | . 52 40 76 5 83 16 88 65 68 43 17 7 . . 13 209 13 5 . 24 8 67 4 11 19 5 45 12 41 . 12 47 Haulers Intercepted 22 | . 2 . 4 . . . 4 . 5 . . . . . . 5 . . . . . 2 . . . . . . . . . . Recyclers Shooed 30 | . 4 3 3 . . . 3 . 2 . . . . . . 6 . . . . . 8 . . . . . . . . . 1 Parts Field Recycled 5 | . . . . . . . . . 5 . . . . . . . . . . . . . . . . . . . . . . . Retrieved Matter 163 | . . . . . . . . . 163 . . . . . . . . . . . . . . . . . . . . . . . Parts Self-Destructed 50 | . . . . . . . . . . . . 4 . . 12 . 8 4 . . 8 . . 3 . . . 3 5 . 3 . Prevented 67 | . . . . . . . . . . . . . . . . . . . . . . . . 10 . 5 . 7 36 . 9 . Kills | -11 -10 -10 -9 -9 -9 -8 -8 -8 -8 -8 -7 -7 -7 -7 -6 -6 -6 -6 -6 -6 -5 -5 -5 -5 -5 -4 -4 -4 -4 -4 -3 -3 ------- Run | Yrd Mat Min Mat Min Exi Min Mat Gar Mat Gar Fac Low Low Dat Pro Fac Low Low Zio Dee Pro Fac Upp Upp War Pro Fac Upp Upp Zhi Pro Res Combat Hostiles Destroyed 390 | . 16 17 23 4 5 9 27 23 16 24 7 7 . . 7 70 6 3 . 14 9 18 . 9 17 2 9 6 13 . 7 22 Melee 2 | . . . . . . 1 . . . . 1 . . . . . . . . . . . . . . . . . . . . . Guns 166 | . 9 . . . 2 7 22 23 8 7 2 . . . 2 35 1 . . 9 . 11 . 4 . . 3 2 7 . 5 7 Cannons 121 | . 7 14 23 . . 1 3 . 6 15 4 4 . . 2 15 3 . . 1 5 7 . . 6 . 3 . . . . 2 AOE 78 | . . 2 . 4 3 . 2 . 2 2 . 3 . . 3 19 2 3 . 4 4 . . 4 10 . . 3 . . . 8 Classes Destroyed 28 | . 7 3 2 . 2 1 1 2 1 . . 2 . . . 3 . . . 1 . . 1 . 1 . . . . . 1 . Worker 21 | . 3 2 1 . . . . . 4 . . . . . . 7 . . . . . 1 . . . . 2 . . . . 1 Builder 10 | . . . 1 . . . 1 . 1 . . . . . . 3 . . . . . . . . . . 3 . . . . 1 Tunneler 2 | . . 1 . . . . 1 . . . . . . . . . . . . . . . . . . . . . . . . . Hauler 22 | . 2 . 4 . . . 4 . 5 . . . . . . 5 . . . . . 2 . . . . . . . . . . Recycler 34 | . 2 8 4 . . . 4 . 4 . . . . . . 6 . . . . . 4 . . . . 1 . . . . 1 Mechanic 3 | . . . . . . . . . 1 . . . . . . 2 . . . . . . . . . . . . . . . . Operator 4 | . 2 . . . . . 1 . . . . . . . . 1 . . . . . . . . . . . . . . . . Drone 2 | . . . . . . . . . . . . . . . . . . . . . . . . . . . . . . . 2 . Turret 1 | . . . . . 1 . . . . . . . . . . . . . . . . . . . . . . . . . . . Watcher 16 | . 3 . 2 . . . 1 . 2 1 . . . . . 3 . . . . . 2 . . . . 1 . . . . 1 Swarmer 74 | . 6 6 6 4 . 3 . . 2 6 . 3 . . 3 7 3 3 . . 4 . . . 1 . . 4 1 . 1 11 Cutter 2 | . . . . . . . . 2 . . . . . . . . . . . . . . . . . . . . . . . . Saboteur 1 | . . . . . . . . . . . . . . . . 1 . . . . . . . . . . . . . . . . Grunt 166 | . 10 2 12 . . 5 17 14 7 13 5 . . . . 35 2 . . . 5 8 . 5 8 . . 1 8 . 3 6 Brawler 10 | . . . . . . 1 1 . . . . 2 . . . 3 . . . . . . . 2 1 . . . . . . . Duelist 6 | . . . . . . . 3 . . . . . . . . 2 . . . . . . . . . . . . 1 . . . Sentry 42 | . . . 5 . . . 6 5 5 4 2 1 . . 1 6 1 . . . . 1 . . . . 1 1 1 . 1 1 Demolisher 2 | . . 1 . . . . . . . . . . . . . . . . . . . . . . 1 . . . . . . . Specialist 9 | . . . . . . . . . . . . . . . . 8 . . . . . . . . 1 . . . . . . . Hunter 23 | . . . . . . . . 2 2 1 . . . . 2 . . . . . . . . 2 3 2 5 . 2 . . 2 Programmer 23 | . . . . . . . . . . . . 1 . . 1 7 . . . . . 9 . . . . 3 . . . . 2 Heavy 1 | . . . . . . . . . . . . . . . . 1 . . . . . . . . . . . . . . . . Striker 2 | . . . . . . . . . . . . . . . . . . . . . . . . . 2 . . . . . . . Zionite 8 | . . . . . 8 . . . . . . . . . . . . . . . . . . . . . . . . . . . Z-Light 7 | . . . . . . . . . . . . . . . . . . . . 7 . . . . . . . . . . . . Decomposer 2 | . . . . . . . . . . . . . . . . . 1 . . . . . . . . . . 1 . . . . Samaritan 1 | . . . . . . . . . . . . . . . . . . . . . . . 1 . . . . . . . . . Assembled 19 | . . 8 . . 4 . . . . . . . . . . . . . . 7 . . . . . . . . . . . . Mutant 4 | . . . . . . . . . . . . 1 . . . . 1 . . . . . 1 1 . . . . . . . . Best Kill Streak 14 | . 4 6 5 4 7 4 7 4 3 5 4 3 . . 3 14 3 3 . 3 5 10 . 4 9 2 4 4 4 . 4 8 Combat Bots Only 9 | . 3 6 4 4 4 4 7 4 3 5 4 3 . . 3 9 3 3 . 3 5 5 . 4 9 2 2 4 4 . 4 7 Max Kills in Single Turn 4 | . 2 2 2 4 2 2 2 1 2 2 1 1 . . 3 4 1 1 . 2 3 2 1 2 2 1 2 2 1 . 1 2 Gunslinging 1 | . 1 . . . . . . . . . . . . . . . . . . . . 1 . . . . . . . . . . Exploded 4 | . . 1 . 4 2 . 1 . 2 2 . 1 . . 3 3 1 1 . 2 3 . . 2 2 . . 2 . . . 2 Melee 1 | . . . . . . 1 . . . . 1 . . . . . . . . . . . . . . . . . . . . . Uniques/NPCs Destroyed 5 | . . . . . 4 . . . . . . . . . . . . . . 1 . . . . . . . . . . . . 8R-AWN (-9/Exiles) EX-BIN (-9/Exiles) EX-HEX (-9/Exiles) EX-DEC (-9/Exiles) Z-Imprinter (-6/Deep Caves) Combat | -11 -10 -10 -9 -9 -9 -8 -8 -8 -8 -8 -7 -7 -7 -7 -6 -6 -6 -6 -6 -6 -5 -5 -5 -5 -5 -4 -4 -4 -4 -4 -3 -3 -------- Run | Yrd Mat Min Mat Min Exi Min Mat Gar Mat Gar Fac Low Low Dat Pro Fac Low Low Zio Dee Pro Fac Upp Upp War Pro Fac Upp Upp Zhi Pro Res Hostile Shots Fired 2166 | . 68 62 52 8 78 49 124 128 63 87 61 26 5 . 53 389 24 1 . 27 29 93 . 22 99 24 62 16 94 . 23 399 Missed 653 | . 21 11 13 3 15 8 51 30 14 24 12 11 2 . 15 128 4 . . 8 6 30 . 7 37 4 20 3 29 . 8 139 Damage Taken 24876 | . 508 864 477 56 1119 574 1149 1144 745 900 472 198 46 . 577 4502 197 14 . 487 391 1221 . 340 1506 247 551 122 726 . 175 5568 Core 2777 | . 64 173 60 6 136 49 75 82 39 75 10 45 . . 51 294 17 . . 34 20 101 . 66 66 . 35 29 19 . 15 1216 Absorbed by Shields 3070 | . . . . . . . . 288 . 4 . . . . . 5 . . . . . 80 . . 344 106 531 117 692 . 165 738 Ignored by Resistances 106 | . . . . . . 12 94 . . . . . . . . . . . . . . . . . . . . . . . . . Regen/Repaired (Parts) 1067 | . 88 . 156 . . . 396 . 312 . . . . . . . . . . . . . . . 115 . . . . . . . Core Remaining (%) 62 | 100 . 5 . . . 37 . . . 50 . . . . 84 . . . . . 57 . . . . 76 . . . . 91 . Volleys Fired 1203 | . 75 59 73 2 66 20 92 84 65 50 15 18 . . 14 177 36 6 1 27 15 82 17 27 34 5 25 10 27 . 13 68 Largest 3 | . 2 2 3 1 3 3 3 3 3 3 3 3 . . 3 3 3 1 1 3 1 3 1 3 3 3 3 3 3 . 3 3 Hottest 245 | . 120 120 155 33 69 87 87 111 85 110 119 119 . . 104 186 121 35 60 164 60 190 60 180 245 185 185 180 180 . 180 195 Shots Fired 2701 | . 149 115 179 2 158 58 262 192 184 140 41 38 1 . 38 397 51 8 1 65 15 131 16 48 59 14 56 23 81 . 40 139 Gun 1741 | . 93 . 19 . 156 38 230 192 146 62 13 10 1 . 24 235 25 1 . 45 . 92 16 40 17 14 45 20 81 . 40 86 Cannon 871 | . 56 112 160 . . 20 25 . 35 76 28 22 . . 12 145 24 4 1 16 9 39 . . 31 . 11 . . . . 45 Launcher 89 | . . 3 . 2 2 . 7 . 3 2 . 6 . . 2 17 2 3 . 4 6 . . 8 11 . . 3 . . . 8 Special . | . . . . . . . . . . . . . . . . . . . . . . . . . . . . . . . . . Kinetic 1667 | . 47 . 106 . 156 58 255 187 181 138 41 30 1 . 36 248 26 1 1 43 9 67 10 . . . 10 . . . . 16 Thermal 443 | . 99 112 73 . . . . 5 . . . . . . . 40 18 4 . 16 . 19 . . 27 . 1 . . . . 29 Explosive 89 | . . 3 . 2 2 . 7 . 3 2 . 6 . . 2 17 2 3 . 4 6 . . 8 11 . . 3 . . . 8 Electromagnetic 502 | . 3 . . . . . . . . . . 2 . . . 92 5 . . 2 . 45 6 40 21 14 45 20 81 . 40 86 Robot Hit Streak 27 | . 11 8 11 . 15 8 27 27 14 16 15 6 . . 8 19 16 7 . 4 4 16 11 5 13 5 9 12 19 . 10 23 Robot Miss Streak 6 | . 4 5 4 . 3 2 4 2 3 3 3 1 . . 4 5 1 . . 4 2 3 2 3 5 1 2 2 4 . 5 6 Penetration Max 2 | . . . . . 1 . . . . . . . . . . 2 . . . 1 . . . . . . . . . . . . Secondary Targets 21 | . 1 . . . . . 1 4 1 . . . . . . 3 . . . . . 3 . 2 . . . . 4 . 1 1 Max Gunslinging Chain 1 | . 1 . . . . . 1 1 1 . . . . . . 1 . . . . . 1 . 1 . . . . 1 . 1 1 Shots Hit Robots 1726 | . 98 59 105 . 107 38 182 136 126 101 28 21 . . 24 235 31 1 . 25 10 81 11 32 29 11 40 15 65 . 25 90 Core Hits 1008 | . 38 38 42 2 53 15 83 62 62 47 12 15 . . 15 223 15 4 . 24 20 41 3 30 45 2 21 10 25 . 13 48 Critical Kills 31 | . . 1 . . 5 . 1 2 . . . . . . . 21 . . . 1 . . . . . . . . . . . . Critical Parts Destroyed 41 | . . . . . 11 . . 6 . . . . . . . 22 . . . 2 . . . . . . . . . . . . Critical Strikes 106 | . . 1 3 . 16 . 1 9 . 3 1 2 . . 1 48 1 . . 3 1 9 . . . . 2 1 . . 2 2 Meltdown 2 | . . 1 . . . . . . . . . . . . . 1 . . . . . . . . . . . . . . . . Destroy 72 | . . . . . 16 . 1 9 . . . 1 . . . 42 . . . 3 . . . . . . . . . . . . Blast 22 | . . . 3 . . . . . . 3 1 1 . . 1 2 . . . . 1 8 . . . . 1 . . . . 1 Corrupt 10 | . . . . . . . . . . . . . . . . 3 1 . . . . 1 . . . . 1 1 . . 2 1 Melee Attacks 5 | . . 5 . . . . . . . . . . . . . . . . . . . . . . . . . . . . . . Impact 5 | . . 5 . . . . . . . . . . . . . . . . . . . . . . . . . . . . . . Slashing . | . . . . . . . . . . . . . . . . . . . . . . . . . . . . . . . . . Piercing . | . . . . . . . . . . . . . . . . . . . . . . . . . . . . . . . . . Sneak Attacks . | . . . . . . . . . . . . . . . . . . . . . . . . . . . . . . . . . Combat Hostiles . | . . . . . . . . . . . . . . . . . . . . . . . . . . . . . . . . . Follow-up Attacks . | . . . . . . . . . . . . . . . . . . . . . . . . . . . . . . . . . Damage Inflicted 49613 | . 1534 1199 2105 205 1925 720 3626 2200 2288 2239 648 867 7 . 600 9415 833 211 . 1077 1177 3045 260 1310 2840 273 1893 647 1636 . 569 4264 Guns 23287 | . 868 . 163 . 1775 478 2598 2125 1521 755 161 108 . . 279 3917 486 . . 487 . 1483 260 600 211 273 797 310 1469 . 569 1594 Cannons 13652 | . 651 1043 1908 . . 223 289 . 576 1157 478 467 . . 200 1852 209 . . 153 393 1473 . . 674 . 660 . . . . 1246 Explosions 11971 | . . 121 . 190 88 . 678 . 119 327 . 292 . . 121 3517 138 211 . 437 784 . . 710 1955 . 394 322 155 . . 1412 Melee . | . . . . . . . . . . . . . . . . . . . . . . . . . . . . . . . . . Ramming 703 | . 15 35 34 15 62 19 61 75 72 . 9 . 7 . . 129 . . . . . 89 . . . . 42 15 12 . . 12 Kinetic 22969 | . 452 . 1151 . 1775 701 2887 2110 2097 1912 639 521 . . 479 3847 478 . . 432 393 1701 157 . . . 660 . . . . 577 Thermal 6881 | . 1028 1043 920 . . . . 15 . . . . . . . 503 125 . . 187 . 389 . 277 1103 . 307 . 155 . . 829 Explosive 10465 | . . 121 . 190 88 . 678 . 119 327 . 292 . . 121 3399 138 211 . 437 784 . . 433 1466 . 87 322 . . . 1252 Electromagnetic 8595 | . 39 . . . . . . . . . . 54 . . . 1537 92 . . 21 . 866 103 600 271 273 797 310 1469 . 569 1594 Impact . | . . . . . . . . . . . . . . . . . . . . . . . . . . . . . . . . . Slashing . | . . . . . . . . . . . . . . . . . . . . . . . . . . . . . . . . . Piercing . | . . . . . . . . . . . . . . . . . . . . . . . . . . . . . . . . . Highest Corruption 35 | . . . . . 1 1 . . . . . 1 1 1 3 5 15 15 35 . . 11 8 29 29 9 1 1 1 1 18 3 Average Corruption 4 | . . . . . 1 1 . . . . . 1 1 1 2 3 8 15 30 . . 7 8 8 4 9 1 1 1 1 5 2 Corruption Purged 10 | . . . . . . . . . . . . . . . . 5 . . . . . 5 . . . . . . . . . . Corruption Blocked 1 | . . . . . . . . . . . . . . . . . . . . . . . . . 1 . . . . . . . Effects 380 | . . . . . 2 6 . . . . . 11 3 1 10 69 37 33 4 . . 33 30 44 10 42 5 11 11 2 15 1 Message Errors 104 | . . . . . 2 1 . . . . . . 1 . 2 22 10 12 1 . . 5 9 12 5 9 1 2 4 1 5 . Matter Fused 93 | . . . . . . 1 . . . . . 3 . . 2 17 11 8 1 . . 8 7 14 1 9 . 5 2 1 3 . Heat Flow Errors 41 | . . . . . . 1 . . . . . 1 . 1 1 7 5 5 . . . 5 3 2 . 7 . 1 1 . 1 . Energy Discharges 45 | . . . . . . . . . . . . 1 1 . 3 9 1 3 1 . . 3 2 5 3 9 . 1 1 . 1 1 Parts Rejected 1 | . . . . . . . . . . . . . . . . 1 . . . . . . . . . . . . . . . . Parts Fused 2 | . . . . . . . . . . . . . . . . . . . . . . . . 1 . . 1 . . . . . Data Loss (minor) 44 | . . . . . . 1 . . . . . 4 . . 2 3 6 1 1 . . 8 5 4 . 3 1 1 1 . 3 . Data Loss (major) 19 | . . . . . . 1 . . . . . . . . . 4 1 1 . . . 2 . 4 . 1 1 1 2 . 1 . Misfires 15 | . . . . . . . . . . . . . 1 . . 2 3 2 . . . 1 1 1 1 1 1 . . . 1 . Alerts 8 | . . . . . . . . . . . . 2 . . . 2 . 1 . . . . 1 1 . 1 . . . . . . Weapon Failures 8 | . . . . . . 1 . . . . . . . . . 2 . . . . . 1 2 . . 2 . . . . . . Overload Shots 1 | . . . . . . . . . . . . . . . . 1 . . . . . . . . . . . . . . . . Overflow Damage 868 | . 18 11 28 41 . . 6 . 21 9 6 . . . . 50 41 . . 7 24 226 . 22 46 . 211 4 9 . . 88 Projectiles 546 | . 18 11 28 . . . . . 4 9 6 . . . . . 41 . . 4 . 226 . . 1 . 171 . . . . 27 Explosions 306 | . . . . 41 . . 6 . 17 . . . . . . 47 . . . 3 24 . . 22 45 . 40 . . . . 61 Melee 16 | . . . . . . . . . . . . . . . . 3 . . . . . . . . . . . 4 9 . . . Knockbacks 58 | . 1 . 5 . . 4 6 . 3 10 2 . . . 4 8 1 . . 1 2 9 . . . . 1 1 . . . . Impact 5 | . 1 . . . . . . . . . . . . . . 1 . . . . . 1 . . . . 1 1 . . . . Kinetic 52 | . . . 5 . . 4 6 . 3 10 2 . . . 4 7 1 . . 1 2 7 . . . . . . . . . . Secondary 1 | . . . . . . . . . . . . . . . . . . . . . . 1 . . . . . . . . . . Self-Inflicted Damage 796 | . . . . 15 . 6 49 . . 46 . . . . . 126 . . . . . . . 57 123 . 157 14 57 . . 146 Shots 21 | . . . . 1 . 1 1 . . 2 . . . . . 6 . . . . . . . 2 2 . 2 1 1 . . 2 Rammed 78 | . 5 3 5 1 21 2 7 11 7 . 1 1 1 . . 10 . . . . . . . . . . 1 . 1 . . 1 Targets Rammed 99 | . 5 4 5 1 22 3 8 11 8 . 2 1 1 . . 11 . . . . . 10 . . . . 4 1 1 . . 1 Kicked 10 | . . . . . . . . . . . . . . . . . . . . . . 10 . . . . . . . . . . Crushed 11 | . . 1 . . 1 1 1 . 1 . 1 . . . . 1 . . . . . . . . . . 3 1 . . . . Highest Temperature 276 | . 150 189 235 . 157 248 18 8 16 18 40 227 2 181 248 276 263 266 31 188 157 242 211 251 164 166 102 62 123 . 240 264 Average Temperature 61 | . 33 63 48 . 35 105 10 6 8 7 22 82 2 105 131 54 67 99 16 63 72 67 113 99 51 75 32 24 48 . 121 85 Received Heat Transfer 4960 | . 246 47 201 . . 333 648 450 324 339 237 6 . . . 1017 48 . . 148 99 162 . 72 47 . 12 10 119 . 26 369 Effects 5 | . . . . . . 2 . . . . . . . . . . 1 . . . . . 2 . . . . . . . . . Energy Bleed 1 | . . . . . . . . . . . . . . . . . 1 . . . . . . . . . . . . . . . Interference 4 | . . . . . . 2 . . . . . . . . . . . . . . . . 2 . . . . . . . . . Siege Activations . | . . . . . . . . . . . . . . . . . . . . . . . . . . . . . . . . . Robots Corrupted 25 | . . . . . . . . . . . . . . . . 1 1 . . . . . 1 1 1 2 3 1 6 . 2 6 Combat Hostiles 22 | . . . . . . . . . . . . . . . . 1 . . . . . . . 1 1 2 3 1 6 . 2 5 Parts Fried 82 | . 1 . . . . . . . . . . . . . . 19 . . . . . 7 1 5 1 4 6 2 15 . 6 15 Impact Corruptions 5 | . . . . . . . . . . . . . . . . 1 . . . . . . . . . . . 1 3 . . . Robots Melted 2 | . . 1 . . . . . . . . . . . . . 1 . . . . . . . . . . . . . . . . Combat Hostiles 1 | . . 1 . . . . . . . . . . . . . . . . . . . . . . . . . . . . . . Parts Melted 9 | . 2 3 . . . . . . 1 . . . . . . 1 . . . . . 2 . . . . . . . . . . Heat Transferred 9399 | . 2382 2183 1924 . . . . 37 . . . . . . . 700 200 . . 246 . 555 . 200 300 . 250 . 100 . . 322 Parts Sabotaged 2 | . . . . . . . . . . . . . . . . 2 . . . . . . . . . . . . . . . . Parts Stolen . | . . . . . . . . . . . . . . . . . . . . . . . . . . . . . . . . . Parts Stripped . | . . . . . . . . . . . . . . . . . . . . . . . . . . . . . . . . . Power Chain Reactions 9 | . . . . . . . . . . . . . . . . 2 . . . . . . . 2 1 . 2 . 1 . . 1 Alert | -11 -10 -10 -9 -9 -9 -8 -8 -8 -8 -8 -7 -7 -7 -7 -6 -6 -6 -6 -6 -6 -5 -5 -5 -5 -5 -4 -4 -4 -4 -4 -3 -3 ------- Run | Yrd Mat Min Mat Min Exi Min Mat Gar Mat Gar Fac Low Low Dat Pro Fac Low Low Zio Dee Pro Fac Upp Upp War Pro Fac Upp Upp Zhi Pro Res Peak Influence 1788 | . 198 185 523 256 . 131 352 864 425 857 511 . . . . 1788 . . . . . 446 . . . . 416 . . . . 687 Initial 449 | . . 40 . 146 . . . 174 421 118 449 . . . . 44 . . . . . 107 . . . . . . . . . 357 Average 312 | . 69 72 317 104 . 70 127 552 296 475 420 . . . . 614 . . . . . 279 . . . . 154 . . . . 438 Maximum Alert Level 5 | . . . 2 1 . . 1 3 2 3 2 . . . . 5 . . . . . 2 . . . . 2 . . . . 2 Low Security (%) 45 | . 100 100 24 86 . 100 87 2 14 5 . . . . . 20 . . . . . 15 . . . . 65 . . . . . Level 1 27 | . . . 34 13 . . 12 24 74 34 41 . . . . 23 . . . . . 74 . . . . 33 . . . . 36 Level 2 18 | . . . 40 . . . . 42 11 35 58 . . . . 23 . . . . . 10 . . . . 1 . . . . 63 Level 3 5 | . . . . . . . . 30 . 23 . . . . . 12 . . . . . . . . . . . . . . . . Level 4 1 | . . . . . . . . . . . . . . . . 10 . . . . . . . . . . . . . . . . Level 5 1 | . . . . . . . . . . . . . . . . 8 . . . . . . . . . . . . . . . . High Security . | . . . . . . . . . . . . . . . . . . . . . . . . . . . . . . . . . Max Security . | . . . . . . . . . . . . . . . . . . . . . . . . . . . . . . . . . Squads Dispatched 57 | . 4 . 1 . . . 4 . 1 . 5 . . . . 27 . . . . . 8 . . . . 3 . . . . 4 Investigation 7 | . 2 . 1 . . . . . . . 1 . . . . 3 . . . . . . . . . . . . . . . . Extermination 12 | . . . . . . . . . . . . . . . . 6 . . . . . 3 . . . . 1 . . . . 2 Reinforcement 29 | . 2 . . . . . 3 . 1 . 1 . . . . 13 . . . . . 5 . . . . 2 . . . . 2 Assault 4 | . . . . . . . . . . . . . . . . 4 . . . . . . . . . . . . . . . . Garrison 5 | . . . . . . . 1 . . . 3 . . . . 1 . . . . . . . . . . . . . . . . Intercept . | . . . . . . . . . . . . . . . . . . . . . . . . . . . . . . . . . Searches Triggered 1 | . . . . . . . . . . . . . . . . . . . . . . . . . . . . . . . . 1 Construction Impeded 5 | . . . . . . . . . . . . . . . . 2 . . . . . 2 . . . . . . . . . 1 Haulers Reinforced 3 | . . . . . . . . . . . . . . . . 2 . . . . . 1 . . . . . . . . . . Active Scanning Responses . | . . . . . . . . . . . . . . . . . . . . . . . . . . . . . . . . . Cargo Convoy Interrupts 1 | . . . . . . . . . . . . . . . . 1 . . . . . . . . . . . . . . . . Stealth | -11 -10 -10 -9 -9 -9 -8 -8 -8 -8 -8 -7 -7 -7 -7 -6 -6 -6 -6 -6 -6 -5 -5 -5 -5 -5 -4 -4 -4 -4 -4 -3 -3 --------- Run | Yrd Mat Min Mat Min Exi Min Mat Gar Mat Gar Fac Low Low Dat Pro Fac Low Low Zio Dee Pro Fac Upp Upp War Pro Fac Upp Upp Zhi Pro Res Distress Signals 20 | . 1 . 3 . . 1 3 . 3 . . . . . . 2 . . . . . . . . 1 . 2 . . . 1 3 Communications Jammed 68 | . . . . . . . . . . . . . . . . . . . . . . . . . . . 45 . . . 1 22 Distress Signals 49 | . . . . . . . . . . . . . . . . . . . . . . . . . . . 45 . . . . 4 Times Spotted 628 | . 25 32 34 3 21 12 42 24 28 24 8 5 3 . 6 110 6 2 . 16 9 36 . 9 86 2 15 6 13 . 8 43 Peak Tracking Total 16 | . 3 10 4 4 9 3 6 4 4 5 3 3 3 . 3 9 3 2 . 3 5 6 . 4 16 2 6 4 4 . 4 12 Tactical Retreats 32 | . . 2 4 . 3 . 3 2 1 1 . . . . . 9 . . . . . . . . 5 . 1 . . . . 1 Traps | -11 -10 -10 -9 -9 -9 -8 -8 -8 -8 -8 -7 -7 -7 -7 -6 -6 -6 -6 -6 -6 -5 -5 -5 -5 -5 -4 -4 -4 -4 -4 -3 -3 ------- Run | Yrd Mat Min Mat Min Exi Min Mat Gar Mat Gar Fac Low Low Dat Pro Fac Low Low Zio Dee Pro Fac Upp Upp War Pro Fac Upp Upp Zhi Pro Res Traps Triggered 14 | . . . . . . . 2 2 . 5 1 . . . . 3 . . . . . . . . . . 1 . . . . . Indirectly . | . . . . . . . . . . . . . . . . . . . . . . . . . . . . . . . . . Trap Hack Attempts . | . . . . . . . . . . . . . . . . . . . . . . . . . . . . . . . . . Triggered . | . . . . . . . . . . . . . . . . . . . . . . . . . . . . . . . . . Disarmed . | . . . . . . . . . . . . . . . . . . . . . . . . . . . . . . . . . Reprogrammed . | . . . . . . . . . . . . . . . . . . . . . . . . . . . . . . . . . Reused . | . . . . . . . . . . . . . . . . . . . . . . . . . . . . . . . . . Traps Extracted . | . . . . . . . . . . . . . . . . . . . . . . . . . . . . . . . . . Installed . | . . . . . . . . . . . . . . . . . . . . . . . . . . . . . . . . . Triggered 18 | . . . . . . . . . . . . . . . . 2 . . . . . . . 2 14 . . . . . . . Machines | -11 -10 -10 -9 -9 -9 -8 -8 -8 -8 -8 -7 -7 -7 -7 -6 -6 -6 -6 -6 -6 -5 -5 -5 -5 -5 -4 -4 -4 -4 -4 -3 -3 ---------- Run | Yrd Mat Min Mat Min Exi Min Mat Gar Mat Gar Fac Low Low Dat Pro Fac Low Low Zio Dee Pro Fac Upp Upp War Pro Fac Upp Upp Zhi Pro Res Machines Disabled 41 | . . . 2 . 12 1 2 1 . . . . . . . 11 . . . 2 . 2 . . 1 . 5 . . . . 2 Max in Single Turn 3 | . . . 1 . 2 1 1 1 . . . . . . . 3 . . . 1 . 1 . . 1 . 2 . . . . 1 Garrison Relay 6 | . . . . . . . . 3 . 3 . . . . . . . . . . . . . . . . . . . . . . Machines Repaired . | . . . . . . . . . . . . . . . . . . . . . . . . . . . . . . . . . Machines Dismantled 6 | . . . . . . . . 3 . 3 . . . . . . . . . . . . . . . . . . . . . . Machines Sabotaged . | . . . . . . . . . . . . . . . . . . . . . . . . . . . . . . . . . Overloaded Fab Kills . | . . . . . . . . . . . . . . . . . . . . . . . . . . . . . . . . . Hacking | -11 -10 -10 -9 -9 -9 -8 -8 -8 -8 -8 -7 -7 -7 -7 -6 -6 -6 -6 -6 -6 -5 -5 -5 -5 -5 -4 -4 -4 -4 -4 -3 -3 --------- Run | Yrd Mat Min Mat Min Exi Min Mat Gar Mat Gar Fac Low Low Dat Pro Fac Low Low Zio Dee Pro Fac Upp Upp War Pro Fac Upp Upp Zhi Pro Res Machines Accessed 68 | . 8 . 6 . 1 . 10 2 8 3 3 . . 3 . 9 . 1 . . . 5 . . . . 3 . . 4 . 2 Terminals 42 | . 5 . 3 . . . 6 2 5 3 2 . . . . 6 . . . . . 5 . . . . 3 . . . . 2 Fabricators 1 | . . . . . . . . . . . . . . . . 1 . . . . . . . . . . . . . . . . Repair Stations 7 | . 1 . 2 . . . 2 . 2 . . . . . . . . . . . . . . . . . . . . . . . Recycling Units 3 | . 2 . 1 . . . . . . . . . . . . . . . . . . . . . . . . . . . . . Scanalyzers 2 | . . . . . . . 1 . . . . . . . . 1 . . . . . . . . . . . . . . . . Garrison Access 4 | . . . . . . . 1 . 1 . 1 . . . . 1 . . . . . . . . . . . . . . . . Total Hacks 207 | . 22 . 16 . 1 . 25 5 25 6 10 . . 24 . 20 . 1 . . . 17 . . . . 9 . . 17 . 9 Successful 123 | . 14 . 11 . 1 . 12 3 15 3 3 . . 24 . 6 . 1 . . . 9 . . . . 2 . . 17 . 2 Failed 84 | . 8 . 5 . . . 13 2 10 3 7 . . . . 14 . . . . . 8 . . . . 7 . . . . 7 Catastrophic 12 | . . . . . . . 4 . 3 1 . . . . . 3 . . . . . 1 . . . . . . . . . . Database Lockouts . | . . . . . . . . . . . . . . . . . . . . . . . . . . . . . . . . . Manual 83 | . 13 . 4 . . . 9 3 10 1 6 . . . . 9 . . 4 . . 12 . . 1 . 8 . . . . 3 Terminals 122 | . 16 . 8 . . . 12 5 16 6 8 . . . . 16 . . . . . 17 . . . . 9 . . . . 9 Fabricators 1 | . . . . . . . . . . . . . . . . 1 . . . . . . . . . . . . . . . . Repair Stations 24 | . 4 . 7 . . . 6 . 7 . . . . . . . . . . . . . . . . . . . . . . . Recycling Units 3 | . 2 . 1 . . . . . . . . . . . . . . . . . . . . . . . . . . . . . Scanalyzers 6 | . . . . . . . 5 . . . . . . . . 1 . . . . . . . . . . . . . . . . Garrison Access 8 | . . . . . . . 2 . 2 . 2 . . . . 2 . . . . . . . . . . . . . . . . Terminal Hacks 82 | . 8 . 3 . 1 . 3 2 5 3 2 . . 24 . 2 . 1 . . . 7 . . . . 2 . . 17 . 2 Record 12 | . . . . . 1 . . . . . . . . 6 . . . . . . . . . . . . . . . 5 . . Part Schematic 17 | . 2 . . . . . . . . . . . . 11 . . . . . . . . . . . . . . . 4 . . Robot Schematic 4 | . . . . . . . . . . . . . . 4 . . . . . . . . . . . . . . . . . . Robot Analysis 7 | . 2 . 1 . . . . . . . . . . . . . . . . . . . . . . . . . . 4 . . Prototype ID Bank 11 | . 2 . . . . . 1 . . . . . . 3 . . . . . . . 1 . . . . . . . 4 . . Open Door 2 | . . . . . . . . . . 1 . . . . . . . 1 . . . . . . . . . . . . . . Branch Access Points 5 | . . . . . . . 1 . . . 1 . . . . 1 . . . . . 1 . . . . 1 . . . . . Emergency Access Points 2 | . . . . . . . . 1 . 1 . . . . . . . . . . . . . . . . . . . . . . Terminal Index 1 | . . . 1 . . . . . . . . . . . . . . . . . . . . . . . . . . . . . Alert Level 1 | . . . . . . . . . 1 . . . . . . . . . . . . . . . . . . . . . . . Unreport Threat 5 | . . . . . . . 1 . 3 . . . . . . . . . . . . 1 . . . . . . . . . . Locate Traps 3 | . . . . . . . . . 1 . . . . . . . . . . . . . . . . . 1 . . . . 1 Transport Status 1 | . 1 . . . . . . . . . . . . . . . . . . . . . . . . . . . . . . . Recall Reinforcements 2 | . . . . . . . . . . . . . . . . . . . . . . 2 . . . . . . . . . . Hauler Manifests 3 | . 1 . 1 . . . . . . . . . . . . . . . . . . 1 . . . . . . . . . . Zone Layout 4 | . . . . . . . . . . . 1 . . . . 1 . . . . . 1 . . . . . . . . . 1 Security Stations 2 | . . . . . . . . 1 . 1 . . . . . . . . . . . . . . . . . . . . . . Fabricator Hacks 1 | . . . . . . . . . . . . . . . . 1 . . . . . . . . . . . . . . . . Network Status 1 | . . . . . . . . . . . . . . . . 1 . . . . . . . . . . . . . . . . Repair Station Hacks 18 | . 2 . 6 . . . 4 . 6 . . . . . . . . . . . . . . . . . . . . . . . Scan Component 10 | . 1 . 4 . . . 2 . 3 . . . . . . . . . . . . . . . . . . . . . . . Repair 8 | . 1 . 2 . . . 2 . 3 . . . . . . . . . . . . . . . . . . . . . . . Recycling Unit Hacks . | . . . . . . . . . . . . . . . . . . . . . . . . . . . . . . . . . Scanalyzer 4 | . . . . . . . 3 . . . . . . . . 1 . . . . . . . . . . . . . . . . Insert Component 4 | . . . . . . . 3 . . . . . . . . 1 . . . . . . . . . . . . . . . . Garrison Access Hacks 2 | . . . . . . . 1 . 1 . . . . . . . . . . . . . . . . . . . . . . . Unlock Access 2 | . . . . . . . 1 . 1 . . . . . . . . . . . . . . . . . . . . . . . Unauthorized Hacks 16 | . 4 . 2 . . . 1 1 3 . 1 . . . . 2 . . . . . 2 . . . . . . . . . . Terminals 13 | . 2 . 1 . . . 1 1 3 . 1 . . . . 2 . . . . . 2 . . . . . . . . . . Assimilate 2 | . . . . . . . . . . . . . . . . 1 . . . . . 1 . . . . . . . . . . Botnet 9 | . 1 . 1 . . . 1 1 2 . 1 . . . . 1 . . . . . 1 . . . . . . . . . . Operators 2 | . 1 . . . . . . . 1 . . . . . . . . . . . . . . . . . . . . . . . Fabricators . | . . . . . . . . . . . . . . . . . . . . . . . . . . . . . . . . . Repair Stations . | . . . . . . . . . . . . . . . . . . . . . . . . . . . . . . . . . Recycling Units 3 | . 2 . 1 . . . . . . . . . . . . . . . . . . . . . . . . . . . . . Tunnel 3 | . 2 . 1 . . . . . . . . . . . . . . . . . . . . . . . . . . . . . Scanalyzers . | . . . . . . . . . . . . . . . . . . . . . . . . . . . . . . . . . Garrison Access . | . . . . . . . . . . . . . . . . . . . . . . . . . . . . . . . . . Data Cores Recovered 1 | . . . . . . . . . . . . . . . . 1 . . . . . . . . . . . . . . . . Used . | . . . . . . . . . . . . . . . . . . . . . . . . . . . . . . . . . Hacking Detections 48 | . 4 . 4 . . . 8 2 8 2 3 . . . . 8 . . . . . 4 . . . . 3 . . . . 2 Full Trace Events 4 | . . . . . . . . . . 1 . . . . . 3 . . . . . . . . . . . . . . . . Feedback Events . | . . . . . . . . . . . . . . . . . . . . . . . . . . . . . . . . . Feedback Blocked . | . . . . . . . . . . . . . . . . . . . . . . . . . . . . . . . . . Robot Schematics Acquired 5 | . . . . . . . . . . . . . . 4 . . . . 1 . . . . . . . . . . . . . Robots Built . | . . . . . . . . . . . . . . . . . . . . . . . . . . . . . . . . . Authchips . | . . . . . . . . . . . . . . . . . . . . . . . . . . . . . . . . . Time . | . . . . . . . . . . . . . . . . . . . . . . . . . . . . . . . . . Total Robot Build Rating . | . . . . . . . . . . . . . . . . . . . . . . . . . . . . . . . . . Part Schematics Acquired 31 | . 2 . . . . . . . . . . . . 11 . . . . 14 . . . . . . . . . . 4 . . Parts Built . | . . . . . . . . . . . . . . . . . . . . . . . . . . . . . . . . . Authchips . | . . . . . . . . . . . . . . . . . . . . . . . . . . . . . . . . . Time . | . . . . . . . . . . . . . . . . . . . . . . . . . . . . . . . . . Total Part Build Rating . | . . . . . . . . . . . . . . . . . . . . . . . . . . . . . . . . . Parts Repaired 8 | . 1 . 2 . . . 2 . 3 . . . . . . . . . . . . . . . . . . . . . . . Time 244 | . 26 . 52 . . . 64 . 102 . . . . . . . . . . . . . . . . . . . . . . . Parts Recycled . | . . . . . . . . . . . . . . . . . . . . . . . . . . . . . . . . . Recycled Matter . | . . . . . . . . . . . . . . . . . . . . . . . . . . . . . . . . . Retrieved Matter . | . . . . . . . . . . . . . . . . . . . . . . . . . . . . . . . . . Retrieved Components . | . . . . . . . . . . . . . . . . . . . . . . . . . . . . . . . . . Parts Scanalyzed . | . . . . . . . . . . . . . . . . . . . . . . . . . . . . . . . . . Part Schematics Acquired . | . . . . . . . . . . . . . . . . . . . . . . . . . . . . . . . . . Parts Damaged . | . . . . . . . . . . . . . . . . . . . . . . . . . . . . . . . . . Bothacking | -11 -10 -10 -9 -9 -9 -8 -8 -8 -8 -8 -7 -7 -7 -7 -6 -6 -6 -6 -6 -6 -5 -5 -5 -5 -5 -4 -4 -4 -4 -4 -3 -3 ------------ Run | Yrd Mat Min Mat Min Exi Min Mat Gar Mat Gar Fac Low Low Dat Pro Fac Low Low Zio Dee Pro Fac Upp Upp War Pro Fac Upp Upp Zhi Pro Res Used RIF Installer . | . . . . . . . . . . . . . . . . . . . . . . . . . . . . . . . . . Robots Hacked . | . . . . . . . . . . . . . . . . . . . . . . . . . . . . . . . . . Non-combat . | . . . . . . . . . . . . . . . . . . . . . . . . . . . . . . . . . Combat . | . . . . . . . . . . . . . . . . . . . . . . . . . . . . . . . . . Robot Hacks Applied . | . . . . . . . . . . . . . . . . . . . . . . . . . . . . . . . . . Relay Couplers Released 22 | . . . . . . . . 11 . 11 . . . . . . . . . . . . . . . . . . . . . . Machine Destruction 22 | . . . . . . . . 11 . 11 . . . . . . . . . . . . . . . . . . . . . . Fabnet Peak Effective % . | . . . . . . . . . . . . . . . . . . . . . . . . . . . . . . . . . Robots Rewired 5 | . . . . . . . . 3 . 2 . . . . . . . . . . . . . . . . . . . . . . Allies Hacked . | . . . . . . . . . . . . . . . . . . . . . . . . . . . . . . . . . Hacks Repelled . | . . . . . . . . . . . . . . . . . . . . . . . . . . . . . . . . . Allies | -11 -10 -10 -9 -9 -9 -8 -8 -8 -8 -8 -7 -7 -7 -7 -6 -6 -6 -6 -6 -6 -5 -5 -5 -5 -5 -4 -4 -4 -4 -4 -3 -3 -------- Run | Yrd Mat Min Mat Min Exi Min Mat Gar Mat Gar Fac Low Low Dat Pro Fac Low Low Zio Dee Pro Fac Upp Upp War Pro Fac Upp Upp Zhi Pro Res Total Allies 14 | . . . . . . . . 3 . 2 . . . . . 1 . . 8 . . . . . . . . . . . . . Largest Group 8 | . . . . . . . . 2 3 2 . . . . . 1 . . 8 8 . . . . . . . . . . . . Highest-Rated Group 241 | . . . . . . . . 32 48 62 . . . . . 10 . . 241 241 . . . . . . . . . . . . Highest-Rated Ally 39 | . . . . . . . . 16 16 31 . . . . . 10 . . 39 39 . . . . . . . . . . . . Total Orders 14 | . . . . . . . . . . . . . . . . 11 . . . . . . . 1 2 . . . . . . . STAY 1 | . . . . . . . . . . . . . . . . 1 . . . . . . . . . . . . . . . . FOLLOW 1 | . . . . . . . . . . . . . . . . 1 . . . . . . . . . . . . . . . . EXPLORE 7 | . . . . . . . . . . . . . . . . 5 . . . . . . . 1 1 . . . . . . . RETURN 5 | . . . . . . . . . . . . . . . . 4 . . . . . . . . 1 . . . . . . . Ally Attacks 93 | . . . . . . . . . 30 14 . . . . . . . . . 49 . . . . . . . . . . . . Total Damage 1289 | . . . . . . . . . 363 273 . . . . . . . . . 653 . . . . . . . . . . . . Kills 12 | . . . . . . . . . 5 3 . . . . . . . . . 4 . . . . . . . . . . . . Allies Corrupted . | . . . . . . . . . . . . . . . . . . . . . . . . . . . . . . . . . Allies Melted . | . . . . . . . . . . . . . . . . . . . . . . . . . . . . . . . . . Intel | -11 -10 -10 -9 -9 -9 -8 -8 -8 -8 -8 -7 -7 -7 -7 -6 -6 -6 -6 -6 -6 -5 -5 -5 -5 -5 -4 -4 -4 -4 -4 -3 -3 ------- Run | Yrd Mat Min Mat Min Exi Min Mat Gar Mat Gar Fac Low Low Dat Pro Fac Low Low Zio Dee Pro Fac Upp Upp War Pro Fac Upp Upp Zhi Pro Res Robot Analysis Total 7 | . 2 . 1 . . . . . . . . . . . . . . . . . . . . . . . . . . 4 . . Derelict Logs Recovered 17 | . . 1 . 1 . . . . . . . 1 2 . 3 . 1 . 1 . 2 . 2 . . 1 . 1 1 . . . Drone Launches 7 | . . . . . . . . . . . . . . . . 5 . . . . . . . 1 1 . . . . . . . Drone Recoveries 4 | . . . . . . . . . . . . . . . . 3 . . . . . . . . 1 . . . . . . . Exploration | -11 -10 -10 -9 -9 -9 -8 -8 -8 -8 -8 -7 -7 -7 -7 -6 -6 -6 -6 -6 -6 -5 -5 -5 -5 -5 -4 -4 -4 -4 -4 -3 -3 ------------- Run | Yrd Mat Min Mat Min Exi Min Mat Gar Mat Gar Fac Low Low Dat Pro Fac Low Low Zio Dee Pro Fac Upp Upp War Pro Fac Upp Upp Zhi Pro Res Turns Passed 42035 | . 2474 1519 1611 905 2073 849 2140 1460 1863 1285 832 810 589 129 767 3976 1281 818 1739 2076 798 1184 1070 1486 1508 1169 898 1364 1441 269 774 878 Spaces Moved 19178 | 1 1249 757 791 559 921 468 857 503 892 460 455 423 277 77 430 1430 716 463 1030 1219 550 508 438 502 653 365 304 530 515 146 281 408 Core 36 | . . . . . . . . . . . . . . . . . . . . . . . . . . . . . . . . 36 Treads 16851 | . 922 757 578 559 921 468 857 503 892 460 455 423 277 77 430 1427 716 463 1030 775 . . 292 502 653 365 304 530 515 146 281 273 Legs 1976 | 1 327 . . . . . . . . . . . . . . . . . . 444 550 508 146 . . . . . . . . . Wheels 216 | . . . 213 . . . . . . . . . . . . 3 . . . . . . . . . . . . . . . . Hover . | . . . . . . . . . . . . . . . . . . . . . . . . . . . . . . . . . Flight 99 | . . . . . . . . . . . . . . . . . . . . . . . . . . . . . . . . 99 Fastest Speed 45 | 120 120 160 115 160 160 160 163 160 160 163 165 161 161 161 161 157 163 167 165 115 115 116 190 162 162 248 166 246 246 166 245 45 Average Speed 181 | 120 149 160 153 160 182 162 188 191 163 213 165 162 161 161 161 221 165 167 165 155 115 165 223 239 189 248 246 246 246 169 245 145 Slowest Speed 410 | 120 160 160 240 160 240 163 246 240 243 246 167 167 161 161 161 245 167 167 167 410 115 198 240 242 248 250 248 246 246 246 246 245 Overloaded Moves . | . . . . . . . . . . . . . . . . . . . . . . . . . . . . . . . . . Propulsion Burnouts . | . . . . . . . . . . . . . . . . . . . . . . . . . . . . . . . . . Robots Hopped 1 | . . . . . . . . . . . . . . . . . . . . . . . . . . . . . . . . 1 Cave-ins Triggered 1 | . . . . . . . . . . . . . . . . . . . . . . . . . 1 . . . . . . . Teleports 1 | . . . . . . . . . . . . . . . . . . . . . . . . . . . . . . . . 1 Exploration Rate (%) 59 | 2 95 95 48 97 79 94 69 51 67 50 14 55 48 68 53 52 79 63 85 72 62 14 62 75 83 60 13 71 65 60 45 19 Regions Visited 32 Branch Regions 21 Pre-discovered Areas 9 | . 2 . 1 . 1 . . . . . . 1 . 1 . . . . . . . . . . . . . . . 3 . . Known Exits Taken 8 | . . . . . . . 1 . 1 . 1 1 . . . 1 . . . . 1 1 . . . . 1 . . . . . Unknown Exits Taken 22 | 1 1 1 1 1 1 1 . . . . . . 1 1 1 . 1 1 1 1 . . 1 1 1 1 . 1 1 1 1 . Scrap Searched 30 | . . 1 . 3 . 1 . . . . . 2 3 . . . 4 3 2 . 1 . 2 1 . 4 . 2 . . 1 . Spaces Dug 185 | . . 7 . 25 5 . . . 19 . 1 . . . . 25 4 6 . 25 . 11 3 14 10 . 2 25 . . . 3 Terrain Destroyed 995 | . . 21 6 25 27 11 49 8 33 20 6 24 . . 16 184 35 13 . 56 52 33 4 76 92 . 55 31 10 . . 108 Melee 2 | . . 2 . . . . . . . . . . . . . . . . . . . . . . . . . . . . . . Projectile 198 | . . . 6 . 12 1 3 6 1 4 6 5 . . 5 41 18 4 . 17 2 32 4 . 8 . 3 . . . . 20 AOE 784 | . . 19 . 25 12 10 46 . 32 16 . 19 . . 11 140 17 9 . 37 50 . . 76 84 . 52 31 10 . . 88 Terrain Rammed . | . . . . . . . . . . . . . . . . . . . . . . . . . . . . . . . . . Walls Destroyed . | . . . . . . . . . . . . . . . . . . . . . . . . . . . . . . . . . Machines Disabled . | . . . . . . . . . . . . . . . . . . . . . . . . . . . . . . . . . Actions | -11 -10 -10 -9 -9 -9 -8 -8 -8 -8 -8 -7 -7 -7 -7 -6 -6 -6 -6 -6 -6 -5 -5 -5 -5 -5 -4 -4 -4 -4 -4 -3 -3 --------- Run | Yrd Mat Min Mat Min Exi Min Mat Gar Mat Gar Fac Low Low Dat Pro Fac Low Low Zio Dee Pro Fac Upp Upp War Pro Fac Upp Upp Zhi Pro Res Total 24265 | . 1703 938 1042 566 1157 514 1200 813 1163 640 507 513 419 82 474 1933 787 504 1070 1368 700 759 511 743 874 620 406 566 624 169 334 566 Wait 2480 | . 342 96 106 . 54 13 149 135 150 87 16 60 136 . 17 114 11 23 6 39 128 69 41 185 92 231 32 14 72 . 28 34 Move 19146 | . 1248 756 790 558 920 467 857 502 892 459 454 422 276 76 429 1429 715 462 1029 1218 549 507 437 501 652 364 303 529 514 145 280 406 Hop 1 | . . . . . . . . . . . . . . . . . . . . . . . . . . . . . . . . 1 Pick Up 224 | . 12 5 17 1 30 2 18 3 12 2 6 . . . . 30 5 2 6 13 . 17 1 1 15 6 6 1 1 2 1 9 Fast Attach 199 | . 4 . 7 . 11 1 16 9 8 1 2 1 1 3 1 37 3 2 5 17 . 16 2 5 18 3 9 . . 9 1 7 Attach 122 | . 2 3 4 . 6 3 6 3 1 2 4 . . . 1 25 2 1 5 9 2 4 2 2 9 3 6 . 1 1 1 14 Detach 58 | . 1 . 1 . 8 1 3 2 1 1 . . . . 1 7 . . 3 6 . 3 1 1 7 . 4 . . 1 . 6 Swap 327 | . 7 7 16 3 8 1 18 19 8 10 2 9 3 . 10 60 10 4 5 10 6 26 7 17 17 1 6 10 7 1 7 12 Drop 338 | . 7 3 23 1 32 3 33 10 18 3 6 2 2 3 1 41 5 4 10 29 . 25 3 4 30 7 11 1 . 10 3 8 Fire 1203 | . 75 59 73 2 66 20 92 84 65 50 15 18 . . 14 177 36 6 1 27 15 82 17 27 34 5 25 10 27 . 13 68 Melee 5 | . . 5 . . . . . . . . . . . . . . . . . . . . . . . . . . . . . . Ram . | . . . . . . . . . . . . . . . . . . . . . . . . . . . . . . . . . Kick 10 | . . . . . . . . . . . . . . . . . . . . . . 10 . . . . . . . . . . Crush 89 | . 5 4 5 1 22 3 8 11 8 . 2 1 1 . . 11 . . . . . . . . . . 4 1 1 . . 1 Escape Stasis 12 | . . . . . . . . . . 10 . . . . . 2 . . . . . . . . . . . . . . . . Rewire 33 | . . . . . . . . 26 . 6 . . . . . . . . . . . . . . . . . . 1 . . . Trap . | . . . . . . . . . . . . . . . . . . . . . . . . . . . . . . . . . Miscellaneous 18 | . . . . . . . . 9 . 9 . . . . . . . . . . . . . . . . . . . . . . Route ------- -11/Scrapyard -10/Materials (discovered 5 exits: *Mat x3 / [*Min x2]) -10/Mines (discovered 2 exits: *Mat x2) -9/Materials (discovered 2 exits: [*Min] / [*Sto]) -9/Mines (discovered 3 exits: *Mat x2 / *Exi) -9/Exiles -8/Mines (discovered 2 exits: *Mat x2) -8/Materials -8/Garrison (discovered 3 exits: *Mat x3) -8/Materials (discovered 2 exits: *Fac / Gar) -8/Garrison (discovered 2 exits: *Fac x2) -7/Factory (discovered 2 exits: *Low x2) -7/Lower Caves -7/Lower Caves -7/Data Miner -6/Proximity Caves -6/Factory (discovered 8 exits: *Fac x4 / *Low x2 / *Ext x2) -6/Lower Caves -6/Lower Caves (discovered 2 exits: *Fac / *Zio) -6/Zion (discovered 2 exits: [*Dee] / [*Pro]) -6/Deep Caves -5/Proximity Caves -5/Factory (discovered 2 exits: *Upp x2) -5/Upper Caves -5/Upper Caves (discovered 2 exits: *Fac / *War) -5/Warlord -4/Proximity Caves -4/Factory (discovered 3 exits: *Upp x2 / Arm) -4/Upper Caves -4/Upper Caves (discovered 2 exits: *Res / *Zhi) -4/Zhirov -3/Proximity Caves -3/Research (discovered 2 exits: Res / *Qua) History --------- Turn | Location | Event 1 | -11/Scrapyard | Discovered new exit (range 0) 1 | -11/Scrapyard | Entered Materials 1 | -10/Materials | Discovered new exit (range 14) 53 | -10/Materials | Discovered new exit (range 12) 315 | -10/Materials | Build established: Mutant 644 | -10/Materials | Discovered new exit (range 16) 1067 | -10/Materials | Discovered new exit (range 13) 1181 | -10/Materials | Discovered new exit (range 10) 1985 | -10/Materials | Repaired Lgt. Treads 2475 | -10/Materials | Entered Mines 2572 | -10/Mines | Learned Materials stockpile data 2596 | -10/Mines | Discovered new exit (range 8) 2603 | -10/Mines | Received a Rocket Launcher from a helpful Derelict 2655 | -10/Mines | Discovered new exit (range 10) 3284 | -10/Mines | Assembled infested the area 3289 | -10/Mines | Assisted by a Guerilla fighting off Assembled 3321 | -10/Mines | Core integrity fell below 50% 3528 | -10/Mines | Core integrity fell below 20% 3721 | -10/Mines | Found a damaged Exp. Sensor Array with a note attached 3727 | -10/Mines | Found Prototype Device 3994 | -10/Mines | Entered Materials 3994 | -9/Materials | Evolved 2 slots: Propulsion x1, Weapon x1 4307 | -9/Materials | Build established: Gunner 4327 | -9/Materials | Discovered new exit (range 12) 4456 | -9/Materials | Repaired Lgt. Treads 4803 | -9/Materials | Repaired Lgt. Treads 4937 | -9/Materials | Discovered new exit (range 5) 5126 | -9/Materials | Build established: Scavenger-Gunner 5605 | -9/Materials | Entered Mines 5629 | -9/Mines | Met a Derelict bent on vengeance 5868 | -9/Mines | Discovered new exit (range 15) 5982 | -9/Mines | Deemed a non-threat by the Exiles lab entrance 5982 | -9/Mines | Discovered new exit (range 5) 6008 | -9/Mines | Discovered new exit (range 15) 6219 | -9/Mines | Learned location of 1 exit from Lower Caves 6383 | -9/Mines | Build established: Scavenger-Tank 6510 | -9/Mines | Entered Exiles 6553 | -9/Exiles | Met 8R-AWN 6579 | -9/Exiles | Met EX-HEX 6643 | -9/Exiles | Met EX-DEC 6651 | -9/Exiles | Learned location of Zion (-6) 6701 | -9/Exiles | Discovered new exit (range 10) 7314 | -9/Exiles | Attacked by the Exiles 7480 | -9/Exiles | Lost 3 parts (2n1u) 7504 | -9/Exiles | Destroyed 8R-AWN 7535 | -9/Exiles | Lost 3 parts (2n1w) 7559 | -9/Exiles | Found Prototype Ballistic Gun 7559 | -9/Exiles | Identified 8R-AWN's Boregun 7563 | -9/Exiles | Found 8R-AWN's Boregun 7579 | -9/Exiles | Found Prototype Device 7579 | -9/Exiles | Identified AS-neutralizer No. 17b 7910 | -9/Exiles | Destroyed EX-BIN 7945 | -9/Exiles | Destroyed EX-HEX 7966 | -9/Exiles | Core integrity fell below 50% 7997 | -9/Exiles | Destroyed EX-DEC 8252 | -9/Exiles | Found Prototype Processor 8509 | -9/Exiles | Found Prototype Processor 8583 | -9/Exiles | Entered Mines 8736 | -8/Mines | Build established: Tank 9359 | -8/Mines | Discovered new exit (range 5) 9398 | -8/Mines | Discovered new exit (range 6) 9432 | -8/Mines | Entered Materials 9432 | -8/Materials | Evolved 2 slots: Utility x2 9501 | -8/Materials | Repaired Arm. Treads 9713 | -8/Materials | Destroyed 7 combat bots 9756 | -8/Materials | Build established: Scavenger-Gunner 10399 | -8/Materials | Repaired Lgt. Treads 10522 | -8/Materials | Identified Exp. Sensor Array 10522 | -8/Materials | Identified Exp. Core Analyzer 10522 | -8/Materials | Identified Exp. Targeting Computer 10747 | -8/Materials | Build established: Gunner 11520 | -8/Materials | Garrison activated, responded to threat 11572 | -8/Materials | Identified exit to Garrison 11572 | -8/Materials | Entered Garrison 11648 | -8/Garrison | Triggered checkpoint 11684 | -8/Garrison | Triggered checkpoint 11717 | -8/Garrison | Garrison Relay disabled 11871 | -8/Garrison | Triggered checkpoint 11947 | -8/Garrison | Discovered new exit (range 8) 11967 | -8/Garrison | Learned Materials security intel 12244 | -8/Garrison | Triggered checkpoint 12319 | -8/Garrison | Garrison Relay disabled 12422 | -8/Garrison | Triggered checkpoint 12548 | -8/Garrison | Discovered new exit (range 12) 12578 | -8/Garrison | Triggered checkpoint 12631 | -8/Garrison | Discovered new exit (range 5) 12850 | -8/Garrison | Triggered checkpoint 12892 | -8/Garrison | Build established: Scavenger-Gunner 12928 | -8/Garrison | Garrison Relay disabled 13032 | -8/Garrison | Entered Materials 13032 | -8/Materials | Accompanied by 3 allies 13539 | -8/Materials | Repaired Hrd. Medium Armor Plating 13572 | -8/Materials | Repaired Imp. Treads 13627 | -8/Materials | Discovered new exit (range 5) 14061 | -8/Materials | Build established: Gunner 14266 | -8/Materials | Repaired Autogun 14895 | -8/Materials | Identified exit to Garrison 14895 | -8/Materials | Entered Garrison 15057 | -8/Garrison | Learned Factory security intel 15077 | -8/Garrison | Garrison Relay disabled 15147 | -8/Garrison | Triggered checkpoint 15167 | -8/Garrison | Triggered checkpoint 15361 | -8/Garrison | Discovered new exit (range 12) 15395 | -8/Garrison | Triggered checkpoint 15519 | -8/Garrison | Garrison Relay disabled 15817 | -8/Garrison | Discovered new exit (range 10) 15987 | -8/Garrison | Garrison Relay disabled 16180 | -8/Garrison | Entered Factory 16180 | -7/Factory | Evolved 2 slots: Propulsion x1, Utility x1 16291 | -7/Factory | Discovered new exit (range 11) 16470 | -7/Factory | Build established: Scavenger-Gunner 16498 | -7/Factory | Identified exit to Lower Caves 17012 | -7/Factory | Entered Lower Caves 17013 | -7/Lower Caves | Identified exit to Lower Caves 17069 | -7/Lower Caves | Met a Warlord Commander 17070 | -7/Lower Caves | Learned location of Warlord (-5) 17071 | -7/Lower Caves | Warlord Commander delivered Encrypted Comm Array 17082 | -7/Lower Caves | Learned Factory emergency access door positions 17305 | -7/Lower Caves | Encountered a Warlord checkpoint 17576 | -7/Lower Caves | Build established: Gunner 17711 | -7/Lower Caves | Attracted the attention of an 0b10 checkpoint 17822 | -7/Lower Caves | Entered another Lower Caves area 17867 | -7/Lower Caves | Learned Factory stockpile data 18219 | -7/Lower Caves | Discovered new exit (range 13) 18411 | -7/Lower Caves | Entered Data Miner 18411 | -7/Data Miner | Discovered new exit (range 6) 18444 | -7/Data Miner | Met Data Miner 18473 | -7/Data Miner | Learned location of Section 7 (-2) 18473 | -7/Data Miner | Acquired the access code to Warlord's prototype stash 18495 | -7/Data Miner | Received God Mode back door access code from Data Miner 18540 | -7/Data Miner | Entered Proximity Caves 18637 | -6/Proximity Caves | Learned Factory terminal intel 18650 | -6/Proximity Caves | Learned 4 Factory zone layouts 18685 | -6/Proximity Caves | Learned Factory terminal intel 19201 | -6/Proximity Caves | Build established: Scavenger-Gunner 19205 | -6/Proximity Caves | Discovered new exit (range 7) 19307 | -6/Proximity Caves | Entered Factory 19307 | -6/Factory | Evolved 2 slots: Power x1, Utility x1 19308 | -6/Factory | Identified exit to Extension 19312 | -6/Factory | Loaded intel: 27 terminal locations 20031 | -6/Factory | Discovered exit to Extension (range 10) 20142 | -6/Factory | Discovered new exit (range 16) 20381 | -6/Factory | Identified exit to Factory 20784 | -6/Factory | Cargo convoy interrupted 21017 | -6/Factory | Found Prototype Processor 21017 | -6/Factory | Identified Exp. Terrain Scan Processor 21024 | -6/Factory | Found Exp. Sensor Array 21028 | -6/Factory | Found Exp. Terrain Scan Processor 21072 | -6/Factory | Found Prototype Device 21072 | -6/Factory | Identified Exp. Thermal Shield 21536 | -6/Factory | Discovered exit to Factory (range 13) 21916 | -6/Factory | Discovered exit to Factory (range 10) 22028 | -6/Factory | Lost 6 parts (1n1u4w) 22441 | -6/Factory | Garrison activated, responded to threat 22457 | -6/Factory | First assault squad dispatched 22617 | -6/Factory | Destroyed 8 combat bots 22683 | -6/Factory | Identified exit to Lower Caves 22974 | -6/Factory | Destroyed 9 combat bots 22980 | -6/Factory | Lost 4 parts (2u2w) 23267 | -6/Factory | Specialist reinforcements revealed to be Infiltrators 23273 | -6/Factory | Discovered exit to Factory (range 12) 23283 | -6/Factory | Entered Lower Caves 23312 | -6/Lower Caves | Learned 4 Factory zone layouts 23428 | -6/Lower Caves | Encountered a Warlord checkpoint 24132 | -6/Lower Caves | Attracted the attention of an 0b10 checkpoint 24212 | -6/Lower Caves | System corruption reached 10% 24486 | -6/Lower Caves | Discovered new exit (range 4) 24564 | -6/Lower Caves | Entered another Lower Caves area 24578 | -6/Lower Caves | Discovered exit to Factory (range 11) 25238 | -6/Lower Caves | Discovered new exit (range 14) 25382 | -6/Lower Caves | Entered Zion 25400 | -6/Zion | System corruption reached 30% 25456 | -6/Zion | System corruption cleaned by Quarantine Array 25682 | -6/Zion | Discovered new exit (range 16) 25776 | -6/Zion | Found Prototype Device 25809 | -6/Zion | Identified Phasing AFG 26100 | -6/Zion | Acquired unknown access codes intercepted by a Zionite 26117 | -6/Zion | Learned 4 Factory zone layouts 26270 | -6/Zion | Learned Factory emergency access door positions 26782 | -6/Zion | Found Prototype Device 26782 | -6/Zion | Identified Bomb Factory No. 2 26900 | -6/Zion | Gained Derelict followers 26929 | -6/Zion | Gained Derelict followers 27068 | -6/Zion | Opened final containment barrier to the Deep Caves 27099 | -6/Zion | Discovered new exit (range 3) 27099 | -6/Zion | Saw the warning signs outside the Deep Caves entrance 27121 | -6/Zion | Entered Deep Caves 27121 | -6/Deep Caves | Accompanied by 8 allies 27472 | -6/Deep Caves | Attacked by Z-Imprinter 27501 | -6/Deep Caves | Allies destroyed Z-Imprinter 27517 | -6/Deep Caves | Found Prototype Protection 27517 | -6/Deep Caves | Identified Zio. Weapon Casing 27530 | -6/Deep Caves | Lost 6 allies 27672 | -6/Deep Caves | Z-Facility disabled 27826 | -6/Deep Caves | Found Zio. Weapon Casing 28416 | -6/Deep Caves | Discovered new exit (range 7) 28878 | -6/Deep Caves | Found Prototype Protection 28878 | -6/Deep Caves | Identified Zio. Heavy Carapace 29197 | -6/Deep Caves | Entered Proximity Caves 29493 | -5/Proximity Caves | Learned Factory stockpile data 29899 | -5/Proximity Caves | Learned Factory trap positions 29908 | -5/Proximity Caves | Discovered exit to Factory (range 5) 29995 | -5/Proximity Caves | Entered Factory 29995 | -5/Factory | Evolved 2 slots: Propulsion x1, Utility x1 29997 | -5/Factory | Loaded intel: 99 trap records 30000 | -5/Factory | Loaded intel: 26 terminal locations 30612 | -5/Factory | Identified exit to Upper Caves 30632 | -5/Factory | System corruption reached 10% 31179 | -5/Factory | Entered Upper Caves 31721 | -5/Upper Caves | Encountered a Warlord checkpoint 31761 | -5/Upper Caves | Learned 4 Factory zone layouts 31875 | -5/Upper Caves | Discovered new exit (range 15) 31923 | -5/Upper Caves | Learned Factory interactive machine intel 32249 | -5/Upper Caves | Entered another Upper Caves area 32300 | -5/Upper Caves | Discovered new exit (range 12) 32988 | -5/Upper Caves | Encountered a Warlord checkpoint 33560 | -5/Upper Caves | Discovered new exit (range 30) 33735 | -5/Upper Caves | Entered Warlord 33789 | -5/Warlord | System corruption cleaned by Quarantine Array 33935 | -5/Warlord | Found Prototype Device 33935 | -5/Warlord | Identified Minesniffer Drone Bay 33949 | -5/Warlord | Found Minesniffer Drone Bay 34294 | -5/Warlord | Met Warlord 34309 | -5/Warlord | Opened Warlord's prototype stash 34317 | -5/Warlord | Found Prototype Reactor 34319 | -5/Warlord | Warlord's base attacked by MAIN.C 34333 | -5/Warlord | Found Prototype Hackware 34342 | -5/Warlord | Found Prototype Device 34342 | -5/Warlord | Identified Exp. Focal Shield 34346 | -5/Warlord | Found Exp. Core Analyzer 34636 | -5/Warlord | Lost 4 allies 34660 | -5/Warlord | Spotted Striker 34666 | -5/Warlord | Spotted Executioner 34669 | -5/Warlord | Warlord forces counterattacked 34701 | -5/Warlord | Lost 3 allies 34736 | -5/Warlord | Spotted Striker 34738 | -5/Warlord | Spotted Executioner 34752 | -5/Warlord | P-80 Master assimilated allied J7-NVS(g) 34753 | -5/Warlord | P-80 Master assimilated allied DQ-1BL(l) 34753 | -5/Warlord | Spotted J7-NVS(g) 34761 | -5/Warlord | Spotted Executioner 34763 | -5/Warlord | Found Exp. Targeting Computer 34766 | -5/Warlord | Spotted Executioner 34807 | -5/Warlord | Lost 16 allies 34837 | -5/Warlord | Spotted Striker 34853 | -5/Warlord | Spotted Striker 34860 | -5/Warlord | Destroyed Striker 34865 | -5/Warlord | Destroyed Striker 34882 | -5/Warlord | Lost 12 allies 34891 | -5/Warlord | Destroyed 9 combat bots 34994 | -5/Warlord | Warlord base infiltrated, sounded retreat 35023 | -5/Warlord | Found Prototype Ballistic Cannon 35091 | -5/Warlord | Spotted Striker 35096 | -5/Warlord | Spotted B-75 Beast 35120 | -5/Warlord | Lost 5 allies 35159 | -5/Warlord | Crushed by falling debris 35190 | -5/Warlord | Lost 3 parts (3u) 35222 | -5/Warlord | Discovered new exit (range 9) 35243 | -5/Warlord | Entered Proximity Caves 35313 | -4/Proximity Caves | Learned location of 1 exit from Research 35462 | -4/Proximity Caves | Build established: Scavenger-Tank 35684 | -4/Proximity Caves | Received a Behemoth hack from an annoying Tinkerer 36273 | -4/Proximity Caves | Discovered new exit (range 15) 36374 | -4/Proximity Caves | Identified Vortex Chain Reactor 36412 | -4/Proximity Caves | Entered Factory 36412 | -4/Factory | Evolved 2 slots: Power x1, Propulsion x1 36414 | -4/Factory | Loaded intel: 52 interactive machine locations 36630 | -4/Factory | Identified Hvy. Autocannon 36823 | -4/Factory | Identified exit to Upper Caves 36823 | -4/Factory | Identified exit to Armory 37310 | -4/Factory | Entered Upper Caves 38220 | -4/Upper Caves | Attracted the attention of an 0b10 checkpoint 38631 | -4/Upper Caves | Discovered new exit (range 15) 38674 | -4/Upper Caves | Entered another Upper Caves area 38897 | -4/Upper Caves | Discovered new exit (range 13) 39044 | -4/Upper Caves | Attracted the attention of an 0b10 checkpoint 39699 | -4/Upper Caves | Discovered new exit (range 2) 40115 | -4/Upper Caves | Entered Zhirov 40115 | -4/Zhirov | Discovered new exit (range 3) 40150 | -4/Zhirov | Met Zhirov 40180 | -4/Zhirov | Learned location of Quarantine (-3) 40180 | -4/Zhirov | Learned location of Testing (-2) 40195 | -4/Zhirov | Zhirov requested help retrieving the SGEMP Prototype 40220 | -4/Zhirov | Found Alien Artifact 40220 | -4/Zhirov | Identified Integrated Reactor 40220 | -4/Zhirov | Installed Integrated Reactor, increased core energy generation (+10) 40298 | -4/Zhirov | Found Alien Artifact 40384 | -4/Zhirov | Entered Proximity Caves 40679 | -3/Proximity Caves | Spotter reported a threat 40791 | -3/Proximity Caves | Spotter reported a threat 40810 | -3/Proximity Caves | Attracted the attention of an 0b10 checkpoint 40857 | -3/Proximity Caves | System corruption reached 10% 41123 | -3/Proximity Caves | Discovered new exit (range 13) 41158 | -3/Proximity Caves | Entered Research 41158 | -3/Research | Evolved 2 slots: Utility x2 41159 | -3/Research | Identified exit to Quarantine 41160 | -3/Research | Identified exit to Research 41195 | -3/Research | Found Prototype Processor 41408 | -3/Research | Search patrols dispatched 41421 | -3/Research | Found Fusion Bomb Launcher 41510 | -3/Research | Destroyed 7 combat bots 41513 | -3/Research | Lost 3 parts (1u2w) 41901 | -3/Research | Identified Transdimensional Reconstructor 41901 | -3/Research | Warped through subspace 41963 | -3/Research | Released all parts (7) 41971 | -3/Research | Core integrity fell below 50% 41993 | -3/Research | Lost 14 parts (1p6n4u3w) 42016 | -3/Research | Spotted B-86 Titan 42028 | -3/Research | Core integrity fell below 20% 42036 | -3/Research | Destroyed by Y-72 Warden with Quantum Rifle Last Messages --------------- 42023_ U-05 Engineer lays Concrete. 42024_ Slug penetrates K-01 Serf. 42026_ Penetrated by Slug. 42026_ Slug penetrates Wall. 42026_ Penetrated by Slug. 42026_ Slug penetrates Wall. 42026_ U-05 Engineer lays Concrete. 42027_ System corrupted: Energy discharge (-28). 42027_ U-05 Engineer lays Concrete. 42027_ Faulty Gravity Flail destroyed. 42028_ U-05 Engineer lays Concrete. 42029_ Acquired 6 matter. 42029_ Penetrated by Slug. 42030_ Slug penetrates H-77 Assassin. 42030_ Slug penetrates G-67 Veteran. 42031_ Acquired 6 matter. 42031_ Imp. Coolant Injector destroyed. 42032_ P-80 Master resets G-67 Veteran, system corruption cleaned. 42032_ U-05 Engineer builds a Wall. Map ----- +----------------------------------------------------+ | ?????????????????????????????????????????????????? | | ?????????????????????????????????????????????????? | | ?????????????????????????????????????????????????? | | ?????????????????????????????????????????????????? | | ?????????????????????????????????????????????????? | | ?????????????????????????????????????????????????? | | ?????????????????????????????????????????????????? | | ?????????????????????????????????????????????????? | | ?????????????????????????????????????????????????? | | ?????????????????????????????????????????????????? | | ????????????????????????? ???????????????????????? | | ????????????????????????? ???????????????????????? | | ?????????????????????????R???????????????????????? | | ????????????????????????? ???????????????????????? | | ????????????????????????? ???????????????????????? | | ????????????????????????? ???????????????????????? | | ????????????????????????? ???????????????????????? | | ????????????????????????# #??????????????????????? | | ????????????????????????# #??????????????????????? | | ????????????????????????# #??????????????????####? | | ????????????????????????# #??????????????##### ## | | ???????????????????????## ##?####+######## # # | | ???????????????????????# [#?# ## ## | | ???????????????????????# > #?# / | | ???????????????????????# Y #?# | | ????????????????????????#@#??# | | ????????????????????????# #??# =! | | ???????????????????????## #### =! | | ???????????????????????# =! | | ???????????????????????+ | | ???????????????????????# | | ???????????????????????# | | ???????????????????????# ### | | ???????????????????????# ####?####+### | | ???????????????????????# #???????? # | | ???????????????????????# #??????? | | ?????????????????????? ######??????? | | ??????????????????????#####??????????? | | ??????????????????????????????????????? # | | ???????????????????????????????????????? # | | ???????????????????????????????????????? # | | ??????????????????????????????????????????#???? | | ?????????????????????????????????????????????????? | | ?????????????????????????????????????????????????? | | ?????????????????????????????????????????????????? | | ???????????????????????????????????????????????? | | ????????????????????????????????????????????????? | | ?????????????????????????????????????????????????# | | ?????????????????????????????????????????????????? | | ?????????????????????????????????????????????????? | +----------------------------------------------------+ Best States ------------- Heat Dissipation 92 Coolant Potential 120 Energy Generation 89 Energy Capacity 950 Matter Stores 300 Matter Capacity 300 Sight Range 22 Robot Scan Range 20 Terrain Scan Density 10 Jamming Range 14 Armor Coverage 1200 Resistance: TH 10 Weapon Shielding 100 Weapon Cycling 25 Evasion (%) 61 Targeting Accuracy 12 Core Analysis 8 Recoil Reduction 6 Salvage Targeting 1 Offensive Hacking 20 Item Schematics ----------------- Huge Storage Unit | -10/Materials | Hacked Hcp. Storage Unit | -10/Materials | Hacked Combat Drone Bay | -7/Data Miner | Free Lgt. Regenerative Plating | -7/Data Miner | Free Cld. Aerolev Unit | -7/Data Miner | Free Thermal Defense Suite | -7/Data Miner | Free Gui. EMP Blaster | -7/Data Miner | Free Antigrav System | -7/Data Miner | Free Mni. Drone Bay | -7/Data Miner | Free Hvy. Phase Cannon | -7/Data Miner | Free Arm. Leg | -7/Data Miner | Free Imp. Thermal Shield | -7/Data Miner | Free Adv. Thermal Shield | -7/Data Miner | Free Focal Shield | -6/Zion | Archive Adv. Cooling System | -6/Zion | Archive Hyp. Mass Driver | -6/Zion | Archive Energy Well | -6/Zion | Archive Imp. Recalibrator | -6/Zion | Archive Hvy. Flak Cannon | -6/Zion | Archive Lance | -6/Zion | Archive Stasis Canceller | -6/Zion | Archive Lyr. Medium Armor Plating | -6/Zion | Archive Mak. Terrain Scanner | -6/Zion | Archive Imp. Kinecellerator | -6/Zion | Archive Mak. Transmission Jammer | -6/Zion | Archive Imp. Component Analysis Suite | -6/Zion | Archive Mapping Drone Bay | -6/Zion | Archive Assault Drone Bay | -4/Zhirov | Free Exp. Heat Sink | -4/Zhirov | Free Exp. Optical Array | -4/Zhirov | Free Imp. Arc Thrower | -4/Zhirov | Free Robot Schematics ------------------ A-15 Conveyor | -7/Data Miner | Free X-57 Shotgunner | -7/Data Miner | Free B-48 Gladiator | -7/Data Miner | Free M-22 Extractor | -7/Data Miner | Free H-77 Assassin | -6/Zion | Archive Fabricated ------------ Nothing Alien Tech Used ----------------- Integrated Reactor Transdimensional Reconstructor Achievements -------------- None Challenges ------------ None Game ------ Seed AlphaQuantumAmplifier Manual? 0 Play Time 04:10:22 Cumulative 1000.6 hours Start 2024.05.12 @ 15:25:31 End 2024.05.31 @ 16:50:46 Sessions 1 Manual Loads 0 Difficulty Rogue Special Mode None Game No. 450 Rogue 449 Adventurer 1 Explorer 0 Win Type - Total 156 Types 43/13/25/4/2/1/63/3/2 Lore% 96 Gallery% 99 Achievement% 93 Wizard Run 0 Options --------- Layout 2 ASCII 0 Keyboard 1 Movement Numpad Keybinds 0 Fullscreen 0 Font 24/Terminus Map View 50x44 Zoom Use 0% Tactical HUD 1 Map Filters NONE Filters NONE Steam 1 RUN: 4387adae-4578-4c0d-b70f-d90450753f4e